Workbook

Sheet Control
B2: GE
B3: Implied Volatility (Low) | C3: 0.17
B4: Implied Volatility (High) | C4: 0.17
B6: Risk-free Rate | C6: 0.025
B7: Expected Dividend Yield | C7: 0.038
B8: Net Drift | C8: =C6-C7 -> -0.013
B10: Best Case | C10: 41
B11: Worst Case | C11: 24
B12: Most-Likely Case | C12: 32

Sheet Stock Price Data
A1: KR | B1: Adj. Close
A2: 2016-07-13 | B2: 32.36
A3: 2016-07-14 | B3: 32.63
A4: 2016-07-15 | B4: 32.88
A5: 2016-07-18 | B5: 32.91
A6: 2016-07-19 | B6: 32.93
A7: 2016-07-20 | B7: 32.78
A8: 2016-07-21 | B8: 32.59
A9: 2016-07-22 | B9: 32.06
A10: 2016-07-25 | B10: 31.64
A11: 2016-07-26 | B11: 31.47
A12: 2016-07-27 | B12: 31.28
A13: 2016-07-28 | B13: 31.25
A14: 2016-07-29 | B14: 31.14
A15: 2016-08-01 | B15: 31.15
A16: 2016-08-02 | B16: 31.05
A17: 2016-08-03 | B17: 31.13
A18: 2016-08-04 | B18: 31.17
A19: 2016-08-05 | B19: 31.28
A20: 2016-08-08 | B20: 31.27
A21: 2016-08-09 | B21: 31.3
A22: 2016-08-10 | B22: 31.27
A23: 2016-08-11 | B23: 31.29
A24: 2016-08-12 | B24: 31.24
A25: 2016-08-15 | B25: 31.24
A26: 2016-08-16 | B26: 31.19
A27: 2016-08-17 | B27: 31.29
A28: 2016-08-18 | B28: 31.43
A29: 2016-08-19 | B29: 31.25
A30: 2016-08-22 | B30: 31.32
A31: 2016-08-23 | B31: 31.23
A32: 2016-08-24 | B32: 31.22
A33: 2016-08-25 | B33: 31.21
A34: 2016-08-26 | B34: 31.23
A35: 2016-08-29 | B35: 31.36
A36: 2016-08-30 | B36: 31.37
A37: 2016-08-31 | B37: 31.24
A38: 2016-09-01 | B38: 31.2
A39: 2016-09-02 | B39: 31.29
A40: 2016-09-06 | B40: 31.05
A41: 2016-09-07 | B41: 31.06
A42: 2016-09-08 | B42: 31.04
A43: 2016-09-09 | B43: 30.11
A44: 2016-09-12 | B44: 30.49
A45: 2016-09-13 | B45: 29.85
A46: 2016-09-14 | B46: 29.7
A47: 2016-09-15 | B47: 29.75
A48: 2016-09-16 | B48: 29.68
A49: 2016-09-19 | B49: 29.43
A50: 2016-09-20 | B50: 29.67
A51: 2016-09-21 | B51: 29.85
A52: 2016-09-22 | B52: 30.04
A53: 2016-09-23 | B53: 29.89
A54: 2016-09-26 | B54: 29.54
A55: 2016-09-27 | B55: 29.88
A56: 2016-09-28 | B56: 29.9
A57: 2016-09-29 | B57: 29.53
A58: 2016-09-30 | B58: 29.62
A59: 2016-10-03 | B59: 29.64
A60: 2016-10-04 | B60: 29.5
A61: 2016-10-05 | B61: 29.5
A62: 2016-10-06 | B62: 29.27
A63: 2016-10-07 | B63: 29.08
A64: 2016-10-10 | B64: 28.86
A65: 2016-10-11 | B65: 28.92
A66: 2016-10-12 | B66: 28.9
A67: 2016-10-13 | B67: 28.77
A68: 2016-10-14 | B68: 28.89
A69: 2016-10-17 | B69: 28.85
A70: 2016-10-18 | B70: 28.98
A71: 2016-10-19 | B71: 29.06
A72: 2016-10-20 | B72: 29.07
A73: 2016-10-21 | B73: 28.98
A74: 2016-10-24 | B74: 28.92
A75: 2016-10-25 | B75: 28.65
A76: 2016-10-26 | B76: 28.87
A77: 2016-10-27 | B77: 28.63
A78: 2016-10-28 | B78: 29.22
A79: 2016-10-31 | B79: 29.1
A80: 2016-11-01 | B80: 28.88
A81: 2016-11-02 | B81: 28.49
A82: 2016-11-03 | B82: 28.28
A83: 2016-11-04 | B83: 28.44
A84: 2016-11-07 | B84: 29.31
A85: 2016-11-08 | B85: 29.42
A86: 2016-11-09 | B86: 29.63
A87: 2016-11-10 | B87: 30.41
A88: 2016-11-11 | B88: 30.71
A89: 2016-11-14 | B89: 30.51
A90: 2016-11-15 | B90: 30.75
A91: 2016-11-16 | B91: 30.74
A92: 2016-11-17 | B92: 30.79
A93: 2016-11-18 | B93: 30.67
A94: 2016-11-21 | B94: 30.87
A95: 2016-11-22 | B95: 31.18
A96: 2016-11-23 | B96: 31.34
A97: 2016-11-25 | B97: 31.44
A98: 2016-11-28 | B98: 31.25
A99: 2016-11-29 | B99: 31.05
A100: 2016-11-30 | B100: 30.76
A101: 2016-12-01 | B101: 31.39
A102: 2016-12-02 | B102: 31.34
A103: 2016-12-05 | B103: 31.11
A104: 2016-12-06 | B104: 31.17
A105: 2016-12-07 | B105: 31.6
A106: 2016-12-08 | B106: 31.53
A107: 2016-12-09 | B107: 31.78
A108: 2016-12-12 | B108: 31.86
A109: 2016-12-13 | B109: 31.74
A110: 2016-12-14 | B110: 31.5
A111: 2016-12-15 | B111: 31.26
A112: 2016-12-16 | B112: 31.75
A113: 2016-12-19 | B113: 31.92
A114: 2016-12-20 | B114: 32.25
A115: 2016-12-21 | B115: 32.13
A116: 2016-12-22 | B116: 31.82
A117: 2016-12-23 | B117: 31.88
A118: 2016-12-27 | B118: 31.9
A119: 2016-12-28 | B119: 31.7
A120: 2016-12-29 | B120: 31.71
A121: 2016-12-30 | B121: 31.6
A122: 2017-01-03 | B122: 31.69
A123: 2017-01-04 | B123: 31.7
A124: 2017-01-05 | B124: 31.52
A125: 2017-01-06 | B125: 31.61
A126: 2017-01-09 | B126: 31.46
A127: 2017-01-10 | B127: 31.37
A128: 2017-01-11 | B128: 31.47
A129: 2017-01-12 | B129: 31.39
A130: 2017-01-13 | B130: 31.36
A131: 2017-01-17 | B131: 31.27
A132: 2017-01-18 | B132: 31.23
A133: 2017-01-19 | B133: 31.21
A134: 2017-01-20 | B134: 30.53
A135: 2017-01-23 | B135: 29.75
A136: 2017-01-24 | B136: 30
A137: 2017-01-25 | B137: 30.37
A138: 2017-01-26 | B138: 30.32
A139: 2017-01-27 | B139: 30.01
A140: 2017-01-30 | B140: 29.96
A141: 2017-01-31 | B141: 29.7
A142: 2017-02-01 | B142: 29.69
A143: 2017-02-02 | B143: 29.68
A144: 2017-02-03 | B144: 29.7
A145: 2017-02-06 | B145: 29.66
A146: 2017-02-07 | B146: 29.56
A147: 2017-02-08 | B147: 29.43
A148: 2017-02-09 | B148: 29.59
A149: 2017-02-10 | B149: 29.72
A150: 2017-02-13 | B150: 30.04
A151: 2017-02-14 | B151: 30.28
A152: 2017-02-15 | B152: 30.35
A153: 2017-02-16 | B153: 30.45
A154: 2017-02-17 | B154: 30.37
A155: 2017-02-21 | B155: 30.52
A156: 2017-02-22 | B156: 30.33
A157: 2017-02-23 | B157: 30.02
A158: 2017-02-24 | B158: 30.19
A159: 2017-02-27 | B159: 29.94
A160: 2017-02-28 | B160: 29.81
A161: 2017-03-01 | B161: 30.19
A162: 2017-03-02 | B162: 30.19
A163: 2017-03-03 | B163: 30.12
A164: 2017-03-06 | B164: 30
A165: 2017-03-07 | B165: 29.86
A166: 2017-03-08 | B166: 29.8
A167: 2017-03-09 | B167: 29.66
A168: 2017-03-10 | B168: 30.28
A169: 2017-03-13 | B169: 29.86
A170: 2017-03-14 | B170: 29.54
A171: 2017-03-15 | B171: 29.76
A172: 2017-03-16 | B172: 29.75
A173: 2017-03-17 | B173: 29.88
A174: 2017-03-20 | B174: 29.74
A175: 2017-03-21 | B175: 29.39
A176: 2017-03-22 | B176: 29.53
A177: 2017-03-23 | B177: 29.62
A178: 2017-03-24 | B178: 29.72
A179: 2017-03-27 | B179: 29.44
A180: 2017-03-28 | B180: 29.62
A181: 2017-03-29 | B181: 29.68
A182: 2017-03-30 | B182: 29.87
A183: 2017-03-31 | B183: 29.8
A184: 2017-04-03 | B184: 29.88
A185: 2017-04-04 | B185: 30.02
A186: 2017-04-05 | B186: 29.97
A187: 2017-04-06 | B187: 29.93
A188: 2017-04-07 | B188: 29.99
A189: 2017-04-10 | B189: 30.01
A190: 2017-04-11 | B190: 30.04
A191: 2017-04-12 | B191: 29.77
A192: 2017-04-13 | B192: 29.56
A193: 2017-04-17 | B193: 29.64
A194: 2017-04-18 | B194: 29.84
A195: 2017-04-19 | B195: 30
A196: 2017-04-20 | B196: 30.27
A197: 2017-04-21 | B197: 29.55
A198: 2017-04-24 | B198: 29.55
A199: 2017-04-25 | B199: 29.45
A200: 2017-04-26 | B200: 29.26
... 52 more rows

Sheet Calculations
A1: Day Count | B1: Day % Yr. | C1: Date | D1: Historical Price | E1: Log of Price | F1: Mu | G1: Std. Deviation (Low) | H1: Std. Deviation (High) | I1: B/S Lower Bound (Low IV) | J1: Risk Free Drift | K1: B/S Upper Bound (Low IV) | L1: Consider Buying | M1: Fair Value Estimate | N1: Consider Selling | O1: B/S Lower Bound (High IV) | P1: B/S Upper Bound (High IV) | Q1: Low Estimate | R1: Most-Likely Estimate | S1: High Estimate
C2: 2009-07-09 | D2: 29.32117225 | I2: 29.32117225 | K2: 29.32117225
C3: 2009-07-10 | D3: 29.02212919 | I3: 29.02212919 | K3: 29.02212919
C4: 2009-07-13 | D4: 29.85944976 | I4: 29.85944976 | K4: 29.85944976
C5: 2009-07-14 | D5: 29.90430622 | I5: 29.90430622 | K5: 29.90430622
C6: 2009-07-15 | D6: 32.14712919 | I6: 32.14712919 | K6: 32.14712919
C7: 2009-07-16 | D7: 32.40131579 | I7: 32.40131579 | K7: 32.40131579
A8: =C8 -> 2016-07-13 | C8: ='Stock Price Data'!A2 -> 2016-07-13 | D8: ='Stock Price Data'!B2 -> 32.36 | I8: =D8 -> 32.36 | J8: =D8 -> 32.36 | K8: =D8 -> 32.36 | O8: =D8 -> 32.36 | P8: =D8 -> 32.36
A9: =C9 -> 2016-07-14 | C9: ='Stock Price Data'!A3 -> 2016-07-14 | D9: ='Stock Price Data'!B3 -> 32.63 | I9: =D9 -> 32.63 | J9: =D9 -> 32.63 | K9: =D9 -> 32.63 | O9: =D9 -> 32.63 | P9: =D9 -> 32.63
A10: 2016-07-15 | C10: ='Stock Price Data'!A4 -> 2016-07-15 | D10: ='Stock Price Data'!B4 -> 32.88 | I10: 32.88 | J10: 32.88 | K10: 32.88 | O10: 32.88 | P10: 32.88
A11: 2016-07-18 | C11: ='Stock Price Data'!A5 -> 2016-07-18 | D11: ='Stock Price Data'!B5 -> 32.91 | I11: 32.91 | J11: 32.91 | K11: 32.91 | O11: 32.91 | P11: 32.91
A12: 2016-07-19 | C12: ='Stock Price Data'!A6 -> 2016-07-19 | D12: ='Stock Price Data'!B6 -> 32.93 | I12: 32.93 | J12: 32.93 | K12: 32.93 | O12: 32.93 | P12: 32.93
A13: 2016-07-20 | C13: ='Stock Price Data'!A7 -> 2016-07-20 | D13: ='Stock Price Data'!B7 -> 32.78 | I13: 32.78 | J13: 32.78 | K13: 32.78 | O13: 32.78 | P13: 32.78
A14: 2016-07-21 | C14: ='Stock Price Data'!A8 -> 2016-07-21 | D14: ='Stock Price Data'!B8 -> 32.59 | I14: 32.59 | J14: 32.59 | K14: 32.59 | O14: 32.59 | P14: 32.59
A15: 2016-07-22 | C15: ='Stock Price Data'!A9 -> 2016-07-22 | D15: ='Stock Price Data'!B9 -> 32.06 | I15: 32.06 | J15: 32.06 | K15: 32.06 | O15: 32.06 | P15: 32.06
A16: 2016-07-25 | C16: ='Stock Price Data'!A10 -> 2016-07-25 | D16: ='Stock Price Data'!B10 -> 31.64 | I16: 31.64 | J16: 31.64 | K16: 31.64 | O16: 31.64 | P16: 31.64
A17: 2016-07-26 | C17: ='Stock Price Data'!A11 -> 2016-07-26 | D17: ='Stock Price Data'!B11 -> 31.47 | I17: 31.47 | J17: 31.47 | K17: 31.47 | O17: 31.47 | P17: 31.47
A18: 2016-07-27 | C18: ='Stock Price Data'!A12 -> 2016-07-27 | D18: ='Stock Price Data'!B12 -> 31.28 | I18: 31.28 | J18: 31.28 | K18: 31.28 | O18: 31.28 | P18: 31.28
A19: 2016-07-28 | C19: ='Stock Price Data'!A13 -> 2016-07-28 | D19: ='Stock Price Data'!B13 -> 31.25 | I19: 31.25 | J19: 31.25 | K19: 31.25 | O19: 31.25 | P19: 31.25
A20: 2016-07-29 | C20: ='Stock Price Data'!A14 -> 2016-07-29 | D20: ='Stock Price Data'!B14 -> 31.14 | I20: 31.14 | J20: 31.14 | K20: 31.14 | O20: 31.14 | P20: 31.14
A21: 2016-08-01 | C21: ='Stock Price Data'!A15 -> 2016-08-01 | D21: ='Stock Price Data'!B15 -> 31.15 | I21: 31.15 | J21: 31.15 | K21: 31.15 | O21: 31.15 | P21: 31.15
A22: 2016-08-02 | C22: ='Stock Price Data'!A16 -> 2016-08-02 | D22: ='Stock Price Data'!B16 -> 31.05 | I22: 31.05 | J22: 31.05 | K22: 31.05 | O22: 31.05 | P22: 31.05
A23: 2016-08-03 | C23: ='Stock Price Data'!A17 -> 2016-08-03 | D23: ='Stock Price Data'!B17 -> 31.13 | I23: 31.13 | J23: 31.13 | K23: 31.13 | O23: 31.13 | P23: 31.13
A24: 2016-08-04 | C24: ='Stock Price Data'!A18 -> 2016-08-04 | D24: ='Stock Price Data'!B18 -> 31.17 | I24: 31.17 | J24: 31.17 | K24: 31.17 | O24: 31.17 | P24: 31.17
A25: 2016-08-05 | C25: ='Stock Price Data'!A19 -> 2016-08-05 | D25: ='Stock Price Data'!B19 -> 31.28 | I25: 31.28 | J25: 31.28 | K25: 31.28 | O25: 31.28 | P25: 31.28
A26: 2016-08-08 | C26: ='Stock Price Data'!A20 -> 2016-08-08 | D26: ='Stock Price Data'!B20 -> 31.27 | I26: 31.27 | J26: 31.27 | K26: 31.27 | O26: 31.27 | P26: 31.27
A27: 2016-08-09 | C27: ='Stock Price Data'!A21 -> 2016-08-09 | D27: ='Stock Price Data'!B21 -> 31.3 | I27: 31.3 | J27: 31.3 | K27: 31.3 | O27: 31.3 | P27: 31.3
A28: 2016-08-10 | C28: ='Stock Price Data'!A22 -> 2016-08-10 | D28: ='Stock Price Data'!B22 -> 31.27 | I28: 31.27 | J28: 31.27 | K28: 31.27 | O28: 31.27 | P28: 31.27
A29: 2016-08-11 | C29: ='Stock Price Data'!A23 -> 2016-08-11 | D29: ='Stock Price Data'!B23 -> 31.29 | I29: 31.29 | J29: 31.29 | K29: 31.29 | O29: 31.29 | P29: 31.29
A30: 2016-08-12 | C30: ='Stock Price Data'!A24 -> 2016-08-12 | D30: ='Stock Price Data'!B24 -> 31.24 | I30: 31.24 | J30: 31.24 | K30: 31.24 | O30: 31.24 | P30: 31.24
A31: 2016-08-15 | C31: ='Stock Price Data'!A25 -> 2016-08-15 | D31: ='Stock Price Data'!B25 -> 31.24 | I31: 31.24 | J31: 31.24 | K31: 31.24 | O31: 31.24 | P31: 31.24
A32: 2016-08-16 | C32: ='Stock Price Data'!A26 -> 2016-08-16 | D32: ='Stock Price Data'!B26 -> 31.19 | I32: 31.19 | J32: 31.19 | K32: 31.19 | O32: 31.19 | P32: 31.19
A33: 2016-08-17 | C33: ='Stock Price Data'!A27 -> 2016-08-17 | D33: ='Stock Price Data'!B27 -> 31.29 | I33: 31.29 | J33: 31.29 | K33: 31.29 | O33: 31.29 | P33: 31.29
A34: 2016-08-18 | C34: ='Stock Price Data'!A28 -> 2016-08-18 | D34: ='Stock Price Data'!B28 -> 31.43 | I34: 31.43 | J34: 31.43 | K34: 31.43 | O34: 31.43 | P34: 31.43
A35: 2016-08-19 | C35: ='Stock Price Data'!A29 -> 2016-08-19 | D35: ='Stock Price Data'!B29 -> 31.25 | I35: 31.25 | J35: 31.25 | K35: 31.25 | O35: 31.25 | P35: 31.25
A36: 2016-08-22 | C36: ='Stock Price Data'!A30 -> 2016-08-22 | D36: ='Stock Price Data'!B30 -> 31.32 | I36: 31.32 | J36: 31.32 | K36: 31.32 | O36: 31.32 | P36: 31.32
A37: 2016-08-23 | C37: ='Stock Price Data'!A31 -> 2016-08-23 | D37: ='Stock Price Data'!B31 -> 31.23 | I37: 31.23 | J37: 31.23 | K37: 31.23 | O37: 31.23 | P37: 31.23
A38: 2016-08-24 | C38: ='Stock Price Data'!A32 -> 2016-08-24 | D38: ='Stock Price Data'!B32 -> 31.22 | I38: 31.22 | J38: 31.22 | K38: 31.22 | O38: 31.22 | P38: 31.22
A39: 2016-08-25 | C39: ='Stock Price Data'!A33 -> 2016-08-25 | D39: ='Stock Price Data'!B33 -> 31.21 | I39: 31.21 | J39: 31.21 | K39: 31.21 | O39: 31.21 | P39: 31.21
A40: 2016-08-26 | C40: ='Stock Price Data'!A34 -> 2016-08-26 | D40: ='Stock Price Data'!B34 -> 31.23 | I40: 31.23 | J40: 31.23 | K40: 31.23 | O40: 31.23 | P40: 31.23
A41: 2016-08-29 | C41: ='Stock Price Data'!A35 -> 2016-08-29 | D41: ='Stock Price Data'!B35 -> 31.36 | I41: 31.36 | J41: 31.36 | K41: 31.36 | O41: 31.36 | P41: 31.36
A42: 2016-08-30 | C42: ='Stock Price Data'!A36 -> 2016-08-30 | D42: ='Stock Price Data'!B36 -> 31.37 | I42: 31.37 | J42: 31.37 | K42: 31.37 | O42: 31.37 | P42: 31.37
A43: 2016-08-31 | C43: ='Stock Price Data'!A37 -> 2016-08-31 | D43: ='Stock Price Data'!B37 -> 31.24 | I43: 31.24 | J43: 31.24 | K43: 31.24 | O43: 31.24 | P43: 31.24
A44: 2016-09-01 | C44: ='Stock Price Data'!A38 -> 2016-09-01 | D44: ='Stock Price Data'!B38 -> 31.2 | I44: 31.2 | J44: 31.2 | K44: 31.2 | O44: 31.2 | P44: 31.2
A45: 2016-09-02 | C45: ='Stock Price Data'!A39 -> 2016-09-02 | D45: ='Stock Price Data'!B39 -> 31.29 | I45: 31.29 | J45: 31.29 | K45: 31.29 | O45: 31.29 | P45: 31.29
A46: 2016-09-06 | C46: ='Stock Price Data'!A40 -> 2016-09-06 | D46: ='Stock Price Data'!B40 -> 31.05 | I46: 31.05 | J46: 31.05 | K46: 31.05 | O46: 31.05 | P46: 31.05
A47: 2016-09-07 | C47: ='Stock Price Data'!A41 -> 2016-09-07 | D47: ='Stock Price Data'!B41 -> 31.06 | I47: 31.06 | J47: 31.06 | K47: 31.06 | O47: 31.06 | P47: 31.06
A48: 2016-09-08 | C48: ='Stock Price Data'!A42 -> 2016-09-08 | D48: ='Stock Price Data'!B42 -> 31.04 | I48: 31.04 | J48: 31.04 | K48: 31.04 | O48: 31.04 | P48: 31.04
A49: 2016-09-09 | C49: ='Stock Price Data'!A43 -> 2016-09-09 | D49: ='Stock Price Data'!B43 -> 30.11 | I49: 30.11 | J49: 30.11 | K49: 30.11 | O49: 30.11 | P49: 30.11
A50: 2016-09-12 | C50: ='Stock Price Data'!A44 -> 2016-09-12 | D50: ='Stock Price Data'!B44 -> 30.49 | I50: 30.49 | J50: 30.49 | K50: 30.49 | O50: 30.49 | P50: 30.49
A51: 2016-09-13 | C51: ='Stock Price Data'!A45 -> 2016-09-13 | D51: ='Stock Price Data'!B45 -> 29.85 | I51: 29.85 | J51: 29.85 | K51: 29.85 | O51: 29.85 | P51: 29.85
A52: 2016-09-14 | C52: ='Stock Price Data'!A46 -> 2016-09-14 | D52: ='Stock Price Data'!B46 -> 29.7 | I52: 29.7 | J52: 29.7 | K52: 29.7 | O52: 29.7 | P52: 29.7
A53: 2016-09-15 | C53: ='Stock Price Data'!A47 -> 2016-09-15 | D53: ='Stock Price Data'!B47 -> 29.75 | I53: 29.75 | J53: 29.75 | K53: 29.75 | O53: 29.75 | P53: 29.75
A54: 2016-09-16 | C54: ='Stock Price Data'!A48 -> 2016-09-16 | D54: ='Stock Price Data'!B48 -> 29.68 | I54: 29.68 | J54: 29.68 | K54: 29.68 | O54: 29.68 | P54: 29.68
A55: 2016-09-19 | C55: ='Stock Price Data'!A49 -> 2016-09-19 | D55: ='Stock Price Data'!B49 -> 29.43 | I55: 29.43 | J55: 29.43 | K55: 29.43 | O55: 29.43 | P55: 29.43
A56: 2016-09-20 | C56: ='Stock Price Data'!A50 -> 2016-09-20 | D56: ='Stock Price Data'!B50 -> 29.67 | I56: 29.67 | J56: 29.67 | K56: 29.67 | O56: 29.67 | P56: 29.67
A57: 2016-09-21 | C57: ='Stock Price Data'!A51 -> 2016-09-21 | D57: ='Stock Price Data'!B51 -> 29.85 | I57: 29.85 | J57: 29.85 | K57: 29.85 | O57: 29.85 | P57: 29.85
A58: 2016-09-22 | C58: ='Stock Price Data'!A52 -> 2016-09-22 | D58: ='Stock Price Data'!B52 -> 30.04 | I58: 30.04 | J58: 30.04 | K58: 30.04 | O58: 30.04 | P58: 30.04
A59: 2016-09-23 | C59: ='Stock Price Data'!A53 -> 2016-09-23 | D59: ='Stock Price Data'!B53 -> 29.89 | I59: 29.89 | J59: 29.89 | K59: 29.89 | O59: 29.89 | P59: 29.89
A60: 2016-09-26 | C60: ='Stock Price Data'!A54 -> 2016-09-26 | D60: ='Stock Price Data'!B54 -> 29.54 | I60: 29.54 | J60: 29.54 | K60: 29.54 | O60: 29.54 | P60: 29.54
A61: 2016-09-27 | C61: ='Stock Price Data'!A55 -> 2016-09-27 | D61: ='Stock Price Data'!B55 -> 29.88 | I61: 29.88 | J61: 29.88 | K61: 29.88 | O61: 29.88 | P61: 29.88
A62: 2016-09-28 | C62: ='Stock Price Data'!A56 -> 2016-09-28 | D62: ='Stock Price Data'!B56 -> 29.9 | I62: 29.9 | J62: 29.9 | K62: 29.9 | O62: 29.9 | P62: 29.9
A63: 2016-09-29 | C63: ='Stock Price Data'!A57 -> 2016-09-29 | D63: ='Stock Price Data'!B57 -> 29.53 | I63: 29.53 | J63: 29.53 | K63: 29.53 | O63: 29.53 | P63: 29.53
A64: 2016-09-30 | C64: ='Stock Price Data'!A58 -> 2016-09-30 | D64: ='Stock Price Data'!B58 -> 29.62 | I64: 29.62 | J64: 29.62 | K64: 29.62 | O64: 29.62 | P64: 29.62
A65: 2016-10-03 | C65: ='Stock Price Data'!A59 -> 2016-10-03 | D65: ='Stock Price Data'!B59 -> 29.64 | I65: 29.64 | J65: 29.64 | K65: 29.64 | O65: 29.64 | P65: 29.64
A66: 2016-10-04 | C66: ='Stock Price Data'!A60 -> 2016-10-04 | D66: ='Stock Price Data'!B60 -> 29.5 | I66: 29.5 | J66: 29.5 | K66: 29.5 | O66: 29.5 | P66: 29.5
A67: 2016-10-05 | C67: ='Stock Price Data'!A61 -> 2016-10-05 | D67: ='Stock Price Data'!B61 -> 29.5 | I67: 29.5 | J67: 29.5 | K67: 29.5 | O67: 29.5 | P67: 29.5
A68: 2016-10-06 | C68: ='Stock Price Data'!A62 -> 2016-10-06 | D68: ='Stock Price Data'!B62 -> 29.27 | I68: 29.27 | J68: 29.27 | K68: 29.27 | O68: 29.27 | P68: 29.27
A69: 2016-10-07 | C69: ='Stock Price Data'!A63 -> 2016-10-07 | D69: ='Stock Price Data'!B63 -> 29.08 | I69: 29.08 | J69: 29.08 | K69: 29.08 | O69: 29.08 | P69: 29.08
A70: 2016-10-10 | C70: ='Stock Price Data'!A64 -> 2016-10-10 | D70: ='Stock Price Data'!B64 -> 28.86 | I70: 28.86 | J70: 28.86 | K70: 28.86 | O70: 28.86 | P70: 28.86
A71: 2016-10-11 | C71: ='Stock Price Data'!A65 -> 2016-10-11 | D71: ='Stock Price Data'!B65 -> 28.92 | I71: 28.92 | J71: 28.92 | K71: 28.92 | O71: 28.92 | P71: 28.92
A72: 2016-10-12 | C72: ='Stock Price Data'!A66 -> 2016-10-12 | D72: ='Stock Price Data'!B66 -> 28.9 | I72: 28.9 | J72: 28.9 | K72: 28.9 | O72: 28.9 | P72: 28.9
A73: =C73 -> 2016-10-13 | C73: ='Stock Price Data'!A67 -> 2016-10-13 | D73: ='Stock Price Data'!B67 -> 28.77 | I73: =D73 -> 28.77 | J73: =D73 -> 28.77 | K73: =D73 -> 28.77 | O73: =D73 -> 28.77 | P73: =D73 -> 28.77
A74: 2016-10-14 | C74: ='Stock Price Data'!A68 -> 2016-10-14 | D74: ='Stock Price Data'!B68 -> 28.89 | I74: 28.89 | J74: 28.89 | K74: 28.89 | O74: 28.89 | P74: 28.89
A75: 2016-10-17 | C75: ='Stock Price Data'!A69 -> 2016-10-17 | D75: ='Stock Price Data'!B69 -> 28.85 | I75: 28.85 | J75: 28.85 | K75: 28.85 | O75: 28.85 | P75: 28.85
A76: 2016-10-18 | C76: ='Stock Price Data'!A70 -> 2016-10-18 | D76: ='Stock Price Data'!B70 -> 28.98 | I76: 28.98 | J76: 28.98 | K76: 28.98 | O76: 28.98 | P76: 28.98
A77: 2016-10-19 | C77: ='Stock Price Data'!A71 -> 2016-10-19 | D77: ='Stock Price Data'!B71 -> 29.06 | I77: 29.06 | J77: 29.06 | K77: 29.06 | O77: 29.06 | P77: 29.06
A78: 2016-10-20 | C78: ='Stock Price Data'!A72 -> 2016-10-20 | D78: ='Stock Price Data'!B72 -> 29.07 | I78: 29.07 | J78: 29.07 | K78: 29.07 | O78: 29.07 | P78: 29.07
A79: 2016-10-21 | C79: ='Stock Price Data'!A73 -> 2016-10-21 | D79: ='Stock Price Data'!B73 -> 28.98 | I79: 28.98 | J79: 28.98 | K79: 28.98 | O79: 28.98 | P79: 28.98
A80: 2016-10-24 | C80: ='Stock Price Data'!A74 -> 2016-10-24 | D80: ='Stock Price Data'!B74 -> 28.92 | I80: 28.92 | J80: 28.92 | K80: 28.92 | O80: 28.92 | P80: 28.92
A81: 2016-10-25 | C81: ='Stock Price Data'!A75 -> 2016-10-25 | D81: ='Stock Price Data'!B75 -> 28.65 | I81: 28.65 | J81: 28.65 | K81: 28.65 | O81: 28.65 | P81: 28.65
A82: 2016-10-26 | C82: ='Stock Price Data'!A76 -> 2016-10-26 | D82: ='Stock Price Data'!B76 -> 28.87 | I82: 28.87 | J82: 28.87 | K82: 28.87 | O82: 28.87 | P82: 28.87
A83: 2016-10-27 | C83: ='Stock Price Data'!A77 -> 2016-10-27 | D83: ='Stock Price Data'!B77 -> 28.63 | I83: 28.63 | J83: 28.63 | K83: 28.63 | O83: 28.63 | P83: 28.63
A84: 2016-10-28 | C84: ='Stock Price Data'!A78 -> 2016-10-28 | D84: ='Stock Price Data'!B78 -> 29.22 | I84: 29.22 | J84: 29.22 | K84: 29.22 | O84: 29.22 | P84: 29.22
A85: 2016-10-31 | C85: ='Stock Price Data'!A79 -> 2016-10-31 | D85: ='Stock Price Data'!B79 -> 29.1 | I85: 29.1 | J85: 29.1 | K85: 29.1 | O85: 29.1 | P85: 29.1
A86: 2016-11-01 | C86: ='Stock Price Data'!A80 -> 2016-11-01 | D86: ='Stock Price Data'!B80 -> 28.88 | I86: 28.88 | J86: 28.88 | K86: 28.88 | O86: 28.88 | P86: 28.88
A87: 2016-11-02 | C87: ='Stock Price Data'!A81 -> 2016-11-02 | D87: ='Stock Price Data'!B81 -> 28.49 | I87: 28.49 | J87: 28.49 | K87: 28.49 | O87: 28.49 | P87: 28.49
A88: 2016-11-03 | C88: ='Stock Price Data'!A82 -> 2016-11-03 | D88: ='Stock Price Data'!B82 -> 28.28 | I88: 28.28 | J88: 28.28 | K88: 28.28 | O88: 28.28 | P88: 28.28
A89: 2016-11-04 | C89: ='Stock Price Data'!A83 -> 2016-11-04 | D89: ='Stock Price Data'!B83 -> 28.44 | I89: 28.44 | J89: 28.44 | K89: 28.44 | O89: 28.44 | P89: 28.44
A90: 2016-11-07 | C90: ='Stock Price Data'!A84 -> 2016-11-07 | D90: ='Stock Price Data'!B84 -> 29.31 | I90: 29.31 | J90: 29.31 | K90: 29.31 | O90: 29.31 | P90: 29.31
A91: 2016-11-08 | C91: ='Stock Price Data'!A85 -> 2016-11-08 | D91: ='Stock Price Data'!B85 -> 29.42 | I91: 29.42 | J91: 29.42 | K91: 29.42 | O91: 29.42 | P91: 29.42
A92: 2016-11-09 | C92: ='Stock Price Data'!A86 -> 2016-11-09 | D92: ='Stock Price Data'!B86 -> 29.63 | I92: 29.63 | J92: 29.63 | K92: 29.63 | O92: 29.63 | P92: 29.63
A93: 2016-11-10 | C93: ='Stock Price Data'!A87 -> 2016-11-10 | D93: ='Stock Price Data'!B87 -> 30.41 | I93: 30.41 | J93: 30.41 | K93: 30.41 | O93: 30.41 | P93: 30.41
A94: 2016-11-11 | C94: ='Stock Price Data'!A88 -> 2016-11-11 | D94: ='Stock Price Data'!B88 -> 30.71 | I94: 30.71 | J94: 30.71 | K94: 30.71 | O94: 30.71 | P94: 30.71
A95: 2016-11-14 | C95: ='Stock Price Data'!A89 -> 2016-11-14 | D95: ='Stock Price Data'!B89 -> 30.51 | I95: 30.51 | J95: 30.51 | K95: 30.51 | O95: 30.51 | P95: 30.51
A96: 2016-11-15 | C96: ='Stock Price Data'!A90 -> 2016-11-15 | D96: ='Stock Price Data'!B90 -> 30.75 | I96: 30.75 | J96: 30.75 | K96: 30.75 | O96: 30.75 | P96: 30.75
A97: 2016-11-16 | C97: ='Stock Price Data'!A91 -> 2016-11-16 | D97: ='Stock Price Data'!B91 -> 30.74 | I97: 30.74 | J97: 30.74 | K97: 30.74 | O97: 30.74 | P97: 30.74
A98: 2016-11-17 | C98: ='Stock Price Data'!A92 -> 2016-11-17 | D98: ='Stock Price Data'!B92 -> 30.79 | I98: 30.79 | J98: 30.79 | K98: 30.79 | O98: 30.79 | P98: 30.79
A99: 2016-11-18 | C99: ='Stock Price Data'!A93 -> 2016-11-18 | D99: ='Stock Price Data'!B93 -> 30.67 | I99: 30.67 | J99: 30.67 | K99: 30.67 | O99: 30.67 | P99: 30.67
A100: 2016-11-21 | C100: ='Stock Price Data'!A94 -> 2016-11-21 | D100: ='Stock Price Data'!B94 -> 30.87 | I100: 30.87 | J100: 30.87 | K100: 30.87 | O100: 30.87 | P100: 30.87
A101: 2016-11-22 | C101: ='Stock Price Data'!A95 -> 2016-11-22 | D101: ='Stock Price Data'!B95 -> 31.18 | I101: 31.18 | J101: 31.18 | K101: 31.18 | O101: 31.18 | P101: 31.18
A102: 2016-11-23 | C102: ='Stock Price Data'!A96 -> 2016-11-23 | D102: ='Stock Price Data'!B96 -> 31.34 | I102: 31.34 | J102: 31.34 | K102: 31.34 | O102: 31.34 | P102: 31.34
A103: 2016-11-25 | C103: ='Stock Price Data'!A97 -> 2016-11-25 | D103: ='Stock Price Data'!B97 -> 31.44 | I103: 31.44 | J103: 31.44 | K103: 31.44 | O103: 31.44 | P103: 31.44
A104: 2016-11-28 | C104: ='Stock Price Data'!A98 -> 2016-11-28 | D104: ='Stock Price Data'!B98 -> 31.25 | I104: 31.25 | J104: 31.25 | K104: 31.25 | O104: 31.25 | P104: 31.25
A105: 2016-11-29 | C105: ='Stock Price Data'!A99 -> 2016-11-29 | D105: ='Stock Price Data'!B99 -> 31.05 | I105: 31.05 | J105: 31.05 | K105: 31.05 | O105: 31.05 | P105: 31.05
A106: 2016-11-30 | C106: ='Stock Price Data'!A100 -> 2016-11-30 | D106: ='Stock Price Data'!B100 -> 30.76 | I106: 30.76 | J106: 30.76 | K106: 30.76 | O106: 30.76 | P106: 30.76
A107: 2016-12-01 | C107: ='Stock Price Data'!A101 -> 2016-12-01 | D107: ='Stock Price Data'!B101 -> 31.39 | I107: 31.39 | J107: 31.39 | K107: 31.39 | O107: 31.39 | P107: 31.39
A108: 2016-12-02 | C108: ='Stock Price Data'!A102 -> 2016-12-02 | D108: ='Stock Price Data'!B102 -> 31.34 | I108: 31.34 | J108: 31.34 | K108: 31.34 | O108: 31.34 | P108: 31.34
A109: 2016-12-05 | C109: ='Stock Price Data'!A103 -> 2016-12-05 | D109: ='Stock Price Data'!B103 -> 31.11 | I109: 31.11 | J109: 31.11 | K109: 31.11 | O109: 31.11 | P109: 31.11
A110: 2016-12-06 | C110: ='Stock Price Data'!A104 -> 2016-12-06 | D110: ='Stock Price Data'!B104 -> 31.17 | I110: 31.17 | J110: 31.17 | K110: 31.17 | O110: 31.17 | P110: 31.17
A111: 2016-12-07 | C111: ='Stock Price Data'!A105 -> 2016-12-07 | D111: ='Stock Price Data'!B105 -> 31.6 | I111: 31.6 | J111: 31.6 | K111: 31.6 | O111: 31.6 | P111: 31.6
A112: 2016-12-08 | C112: ='Stock Price Data'!A106 -> 2016-12-08 | D112: ='Stock Price Data'!B106 -> 31.53 | I112: 31.53 | J112: 31.53 | K112: 31.53 | O112: 31.53 | P112: 31.53
A113: 2016-12-09 | C113: ='Stock Price Data'!A107 -> 2016-12-09 | D113: ='Stock Price Data'!B107 -> 31.78 | I113: 31.78 | J113: 31.78 | K113: 31.78 | O113: 31.78 | P113: 31.78
A114: 2016-12-12 | C114: ='Stock Price Data'!A108 -> 2016-12-12 | D114: ='Stock Price Data'!B108 -> 31.86 | I114: 31.86 | J114: 31.86 | K114: 31.86 | O114: 31.86 | P114: 31.86
A115: 2016-12-13 | C115: ='Stock Price Data'!A109 -> 2016-12-13 | D115: ='Stock Price Data'!B109 -> 31.74 | I115: 31.74 | J115: 31.74 | K115: 31.74 | O115: 31.74 | P115: 31.74
A116: 2016-12-14 | C116: ='Stock Price Data'!A110 -> 2016-12-14 | D116: ='Stock Price Data'!B110 -> 31.5 | I116: 31.5 | J116: 31.5 | K116: 31.5 | O116: 31.5 | P116: 31.5
A117: 2016-12-15 | C117: ='Stock Price Data'!A111 -> 2016-12-15 | D117: ='Stock Price Data'!B111 -> 31.26 | I117: 31.26 | J117: 31.26 | K117: 31.26 | O117: 31.26 | P117: 31.26
A118: 2016-12-16 | C118: ='Stock Price Data'!A112 -> 2016-12-16 | D118: ='Stock Price Data'!B112 -> 31.75 | I118: 31.75 | J118: 31.75 | K118: 31.75 | O118: 31.75 | P118: 31.75
A119: 2016-12-19 | C119: ='Stock Price Data'!A113 -> 2016-12-19 | D119: ='Stock Price Data'!B113 -> 31.92 | I119: 31.92 | J119: 31.92 | K119: 31.92 | O119: 31.92 | P119: 31.92
A120: 2016-12-20 | C120: ='Stock Price Data'!A114 -> 2016-12-20 | D120: ='Stock Price Data'!B114 -> 32.25 | I120: 32.25 | J120: 32.25 | K120: 32.25 | O120: 32.25 | P120: 32.25
A121: 2016-12-21 | C121: ='Stock Price Data'!A115 -> 2016-12-21 | D121: ='Stock Price Data'!B115 -> 32.13 | I121: 32.13 | J121: 32.13 | K121: 32.13 | O121: 32.13 | P121: 32.13
A122: 2016-12-22 | C122: ='Stock Price Data'!A116 -> 2016-12-22 | D122: ='Stock Price Data'!B116 -> 31.82 | I122: 31.82 | J122: 31.82 | K122: 31.82 | O122: 31.82 | P122: 31.82
A123: 2016-12-23 | C123: ='Stock Price Data'!A117 -> 2016-12-23 | D123: ='Stock Price Data'!B117 -> 31.88 | I123: 31.88 | J123: 31.88 | K123: 31.88 | O123: 31.88 | P123: 31.88
A124: 2016-12-27 | C124: ='Stock Price Data'!A118 -> 2016-12-27 | D124: ='Stock Price Data'!B118 -> 31.9 | I124: 31.9 | J124: 31.9 | K124: 31.9 | O124: 31.9 | P124: 31.9
A125: 2016-12-28 | C125: ='Stock Price Data'!A119 -> 2016-12-28 | D125: ='Stock Price Data'!B119 -> 31.7 | I125: 31.7 | J125: 31.7 | K125: 31.7 | O125: 31.7 | P125: 31.7
A126: 2016-12-29 | C126: ='Stock Price Data'!A120 -> 2016-12-29 | D126: ='Stock Price Data'!B120 -> 31.71 | I126: 31.71 | J126: 31.71 | K126: 31.71 | O126: 31.71 | P126: 31.71
A127: 2016-12-30 | C127: ='Stock Price Data'!A121 -> 2016-12-30 | D127: ='Stock Price Data'!B121 -> 31.6 | I127: 31.6 | J127: 31.6 | K127: 31.6 | O127: 31.6 | P127: 31.6
A128: 2017-01-03 | C128: ='Stock Price Data'!A122 -> 2017-01-03 | D128: ='Stock Price Data'!B122 -> 31.69 | I128: 31.69 | J128: 31.69 | K128: 31.69 | O128: 31.69 | P128: 31.69
A129: 2017-01-04 | C129: ='Stock Price Data'!A123 -> 2017-01-04 | D129: ='Stock Price Data'!B123 -> 31.7 | I129: 31.7 | J129: 31.7 | K129: 31.7 | O129: 31.7 | P129: 31.7
A130: 2017-01-05 | C130: ='Stock Price Data'!A124 -> 2017-01-05 | D130: ='Stock Price Data'!B124 -> 31.52 | I130: 31.52 | J130: 31.52 | K130: 31.52 | O130: 31.52 | P130: 31.52
A131: 2017-01-06 | C131: ='Stock Price Data'!A125 -> 2017-01-06 | D131: ='Stock Price Data'!B125 -> 31.61 | I131: 31.61 | J131: 31.61 | K131: 31.61 | O131: 31.61 | P131: 31.61
A132: 2017-01-09 | C132: ='Stock Price Data'!A126 -> 2017-01-09 | D132: ='Stock Price Data'!B126 -> 31.46 | I132: 31.46 | J132: 31.46 | K132: 31.46 | O132: 31.46 | P132: 31.46
A133: 2017-01-10 | C133: ='Stock Price Data'!A127 -> 2017-01-10 | D133: ='Stock Price Data'!B127 -> 31.37 | I133: 31.37 | J133: 31.37 | K133: 31.37 | O133: 31.37 | P133: 31.37
A134: 2017-01-11 | C134: ='Stock Price Data'!A128 -> 2017-01-11 | D134: ='Stock Price Data'!B128 -> 31.47 | I134: 31.47 | J134: 31.47 | K134: 31.47 | O134: 31.47 | P134: 31.47
A135: 2017-01-12 | C135: ='Stock Price Data'!A129 -> 2017-01-12 | D135: ='Stock Price Data'!B129 -> 31.39 | I135: 31.39 | J135: 31.39 | K135: 31.39 | O135: 31.39 | P135: 31.39
A136: 2017-01-13 | C136: ='Stock Price Data'!A130 -> 2017-01-13 | D136: ='Stock Price Data'!B130 -> 31.36 | I136: 31.36 | J136: 31.36 | K136: 31.36 | O136: 31.36 | P136: 31.36
A137: =C137 -> 2017-01-17 | C137: ='Stock Price Data'!A131 -> 2017-01-17 | D137: ='Stock Price Data'!B131 -> 31.27 | I137: =D137 -> 31.27 | J137: =D137 -> 31.27 | K137: =D137 -> 31.27 | O137: =D137 -> 31.27 | P137: =D137 -> 31.27
A138: 2017-01-18 | C138: ='Stock Price Data'!A132 -> 2017-01-18 | D138: ='Stock Price Data'!B132 -> 31.23 | I138: 31.23 | J138: 31.23 | K138: 31.23 | O138: 31.23 | P138: 31.23
A139: 2017-01-19 | C139: ='Stock Price Data'!A133 -> 2017-01-19 | D139: ='Stock Price Data'!B133 -> 31.21 | I139: 31.21 | J139: 31.21 | K139: 31.21 | O139: 31.21 | P139: 31.21
A140: 2017-01-20 | C140: ='Stock Price Data'!A134 -> 2017-01-20 | D140: ='Stock Price Data'!B134 -> 30.53 | I140: 30.53 | J140: 30.53 | K140: 30.53 | O140: 30.53 | P140: 30.53
A141: 2017-01-23 | C141: ='Stock Price Data'!A135 -> 2017-01-23 | D141: ='Stock Price Data'!B135 -> 29.75 | I141: 29.75 | J141: 29.75 | K141: 29.75 | O141: 29.75 | P141: 29.75
A142: 2017-01-24 | C142: ='Stock Price Data'!A136 -> 2017-01-24 | D142: ='Stock Price Data'!B136 -> 30 | I142: 30 | J142: 30 | K142: 30 | O142: 30 | P142: 30
A143: 2017-01-25 | C143: ='Stock Price Data'!A137 -> 2017-01-25 | D143: ='Stock Price Data'!B137 -> 30.37 | I143: 30.37 | J143: 30.37 | K143: 30.37 | O143: 30.37 | P143: 30.37
A144: 2017-01-26 | C144: ='Stock Price Data'!A138 -> 2017-01-26 | D144: ='Stock Price Data'!B138 -> 30.32 | I144: 30.32 | J144: 30.32 | K144: 30.32 | O144: 30.32 | P144: 30.32
A145: 2017-01-27 | C145: ='Stock Price Data'!A139 -> 2017-01-27 | D145: ='Stock Price Data'!B139 -> 30.01 | I145: 30.01 | J145: 30.01 | K145: 30.01 | O145: 30.01 | P145: 30.01
A146: 2017-01-30 | C146: ='Stock Price Data'!A140 -> 2017-01-30 | D146: ='Stock Price Data'!B140 -> 29.96 | I146: 29.96 | J146: 29.96 | K146: 29.96 | O146: 29.96 | P146: 29.96
A147: 2017-01-31 | C147: ='Stock Price Data'!A141 -> 2017-01-31 | D147: ='Stock Price Data'!B141 -> 29.7 | I147: 29.7 | J147: 29.7 | K147: 29.7 | O147: 29.7 | P147: 29.7
A148: 2017-02-01 | C148: ='Stock Price Data'!A142 -> 2017-02-01 | D148: ='Stock Price Data'!B142 -> 29.69 | I148: 29.69 | J148: 29.69 | K148: 29.69 | O148: 29.69 | P148: 29.69
A149: 2017-02-02 | C149: ='Stock Price Data'!A143 -> 2017-02-02 | D149: ='Stock Price Data'!B143 -> 29.68 | I149: 29.68 | J149: 29.68 | K149: 29.68 | O149: 29.68 | P149: 29.68
A150: 2017-02-03 | C150: ='Stock Price Data'!A144 -> 2017-02-03 | D150: ='Stock Price Data'!B144 -> 29.7 | I150: 29.7 | J150: 29.7 | K150: 29.7 | O150: 29.7 | P150: 29.7
A151: 2017-02-06 | C151: ='Stock Price Data'!A145 -> 2017-02-06 | D151: ='Stock Price Data'!B145 -> 29.66 | I151: 29.66 | J151: 29.66 | K151: 29.66 | O151: 29.66 | P151: 29.66
A152: 2017-02-07 | C152: ='Stock Price Data'!A146 -> 2017-02-07 | D152: ='Stock Price Data'!B146 -> 29.56 | I152: 29.56 | J152: 29.56 | K152: 29.56 | O152: 29.56 | P152: 29.56
A153: 2017-02-08 | C153: ='Stock Price Data'!A147 -> 2017-02-08 | D153: ='Stock Price Data'!B147 -> 29.43 | I153: 29.43 | J153: 29.43 | K153: 29.43 | O153: 29.43 | P153: 29.43
A154: 2017-02-09 | C154: ='Stock Price Data'!A148 -> 2017-02-09 | D154: ='Stock Price Data'!B148 -> 29.59 | I154: 29.59 | J154: 29.59 | K154: 29.59 | O154: 29.59 | P154: 29.59
A155: 2017-02-10 | C155: ='Stock Price Data'!A149 -> 2017-02-10 | D155: ='Stock Price Data'!B149 -> 29.72 | I155: 29.72 | J155: 29.72 | K155: 29.72 | O155: 29.72 | P155: 29.72
A156: 2017-02-13 | C156: ='Stock Price Data'!A150 -> 2017-02-13 | D156: ='Stock Price Data'!B150 -> 30.04 | I156: 30.04 | J156: 30.04 | K156: 30.04 | O156: 30.04 | P156: 30.04
A157: 2017-02-14 | C157: ='Stock Price Data'!A151 -> 2017-02-14 | D157: ='Stock Price Data'!B151 -> 30.28 | I157: 30.28 | J157: 30.28 | K157: 30.28 | O157: 30.28 | P157: 30.28
A158: 2017-02-15 | C158: ='Stock Price Data'!A152 -> 2017-02-15 | D158: ='Stock Price Data'!B152 -> 30.35 | I158: 30.35 | J158: 30.35 | K158: 30.35 | O158: 30.35 | P158: 30.35
A159: 2017-02-16 | C159: ='Stock Price Data'!A153 -> 2017-02-16 | D159: ='Stock Price Data'!B153 -> 30.45 | I159: 30.45 | J159: 30.45 | K159: 30.45 | O159: 30.45 | P159: 30.45
A160: 2017-02-17 | C160: ='Stock Price Data'!A154 -> 2017-02-17 | D160: ='Stock Price Data'!B154 -> 30.37 | I160: 30.37 | J160: 30.37 | K160: 30.37 | O160: 30.37 | P160: 30.37
A161: 2017-02-21 | C161: ='Stock Price Data'!A155 -> 2017-02-21 | D161: ='Stock Price Data'!B155 -> 30.52 | I161: 30.52 | J161: 30.52 | K161: 30.52 | O161: 30.52 | P161: 30.52
A162: 2017-02-22 | C162: ='Stock Price Data'!A156 -> 2017-02-22 | D162: ='Stock Price Data'!B156 -> 30.33 | I162: 30.33 | J162: 30.33 | K162: 30.33 | O162: 30.33 | P162: 30.33
A163: 2017-02-23 | C163: ='Stock Price Data'!A157 -> 2017-02-23 | D163: ='Stock Price Data'!B157 -> 30.02 | I163: 30.02 | J163: 30.02 | K163: 30.02 | O163: 30.02 | P163: 30.02
A164: 2017-02-24 | C164: ='Stock Price Data'!A158 -> 2017-02-24 | D164: ='Stock Price Data'!B158 -> 30.19 | I164: 30.19 | J164: 30.19 | K164: 30.19 | O164: 30.19 | P164: 30.19
A165: 2017-02-27 | C165: ='Stock Price Data'!A159 -> 2017-02-27 | D165: ='Stock Price Data'!B159 -> 29.94 | I165: 29.94 | J165: 29.94 | K165: 29.94 | O165: 29.94 | P165: 29.94
A166: 2017-02-28 | C166: ='Stock Price Data'!A160 -> 2017-02-28 | D166: ='Stock Price Data'!B160 -> 29.81 | I166: 29.81 | J166: 29.81 | K166: 29.81 | O166: 29.81 | P166: 29.81
A167: 2017-03-01 | C167: ='Stock Price Data'!A161 -> 2017-03-01 | D167: ='Stock Price Data'!B161 -> 30.19 | I167: 30.19 | J167: 30.19 | K167: 30.19 | O167: 30.19 | P167: 30.19
A168: 2017-03-02 | C168: ='Stock Price Data'!A162 -> 2017-03-02 | D168: ='Stock Price Data'!B162 -> 30.19 | I168: 30.19 | J168: 30.19 | K168: 30.19 | O168: 30.19 | P168: 30.19
A169: 2017-03-03 | C169: ='Stock Price Data'!A163 -> 2017-03-03 | D169: ='Stock Price Data'!B163 -> 30.12 | I169: 30.12 | J169: 30.12 | K169: 30.12 | O169: 30.12 | P169: 30.12
A170: 2017-03-06 | C170: ='Stock Price Data'!A164 -> 2017-03-06 | D170: ='Stock Price Data'!B164 -> 30 | I170: 30 | J170: 30 | K170: 30 | O170: 30 | P170: 30
A171: 2017-03-07 | C171: ='Stock Price Data'!A165 -> 2017-03-07 | D171: ='Stock Price Data'!B165 -> 29.86 | I171: 29.86 | J171: 29.86 | K171: 29.86 | O171: 29.86 | P171: 29.86
A172: 2017-03-08 | C172: ='Stock Price Data'!A166 -> 2017-03-08 | D172: ='Stock Price Data'!B166 -> 29.8 | I172: 29.8 | J172: 29.8 | K172: 29.8 | O172: 29.8 | P172: 29.8
A173: 2017-03-09 | C173: ='Stock Price Data'!A167 -> 2017-03-09 | D173: ='Stock Price Data'!B167 -> 29.66 | I173: 29.66 | J173: 29.66 | K173: 29.66 | O173: 29.66 | P173: 29.66
A174: 2017-03-10 | C174: ='Stock Price Data'!A168 -> 2017-03-10 | D174: ='Stock Price Data'!B168 -> 30.28 | I174: 30.28 | J174: 30.28 | K174: 30.28 | O174: 30.28 | P174: 30.28
A175: 2017-03-13 | C175: ='Stock Price Data'!A169 -> 2017-03-13 | D175: ='Stock Price Data'!B169 -> 29.86 | I175: 29.86 | J175: 29.86 | K175: 29.86 | O175: 29.86 | P175: 29.86
A176: 2017-03-14 | C176: ='Stock Price Data'!A170 -> 2017-03-14 | D176: ='Stock Price Data'!B170 -> 29.54 | I176: 29.54 | J176: 29.54 | K176: 29.54 | O176: 29.54 | P176: 29.54
A177: 2017-03-15 | C177: ='Stock Price Data'!A171 -> 2017-03-15 | D177: ='Stock Price Data'!B171 -> 29.76 | I177: 29.76 | J177: 29.76 | K177: 29.76 | O177: 29.76 | P177: 29.76
A178: 2017-03-16 | C178: ='Stock Price Data'!A172 -> 2017-03-16 | D178: ='Stock Price Data'!B172 -> 29.75 | I178: 29.75 | J178: 29.75 | K178: 29.75 | O178: 29.75 | P178: 29.75
A179: 2017-03-17 | C179: ='Stock Price Data'!A173 -> 2017-03-17 | D179: ='Stock Price Data'!B173 -> 29.88 | I179: 29.88 | J179: 29.88 | K179: 29.88 | O179: 29.88 | P179: 29.88
A180: 2017-03-20 | C180: ='Stock Price Data'!A174 -> 2017-03-20 | D180: ='Stock Price Data'!B174 -> 29.74 | I180: 29.74 | J180: 29.74 | K180: 29.74 | O180: 29.74 | P180: 29.74
A181: 2017-03-21 | C181: ='Stock Price Data'!A175 -> 2017-03-21 | D181: ='Stock Price Data'!B175 -> 29.39 | I181: 29.39 | J181: 29.39 | K181: 29.39 | O181: 29.39 | P181: 29.39
A182: 2017-03-22 | C182: ='Stock Price Data'!A176 -> 2017-03-22 | D182: ='Stock Price Data'!B176 -> 29.53 | I182: 29.53 | J182: 29.53 | K182: 29.53 | O182: 29.53 | P182: 29.53
A183: 2017-03-23 | C183: ='Stock Price Data'!A177 -> 2017-03-23 | D183: ='Stock Price Data'!B177 -> 29.62 | I183: 29.62 | J183: 29.62 | K183: 29.62 | O183: 29.62 | P183: 29.62
A184: 2017-03-24 | C184: ='Stock Price Data'!A178 -> 2017-03-24 | D184: ='Stock Price Data'!B178 -> 29.72 | I184: 29.72 | J184: 29.72 | K184: 29.72 | O184: 29.72 | P184: 29.72
A185: 2017-03-27 | C185: ='Stock Price Data'!A179 -> 2017-03-27 | D185: ='Stock Price Data'!B179 -> 29.44 | I185: 29.44 | J185: 29.44 | K185: 29.44 | O185: 29.44 | P185: 29.44
A186: 2017-03-28 | C186: ='Stock Price Data'!A180 -> 2017-03-28 | D186: ='Stock Price Data'!B180 -> 29.62 | I186: 29.62 | J186: 29.62 | K186: 29.62 | O186: 29.62 | P186: 29.62
A187: 2017-03-29 | C187: ='Stock Price Data'!A181 -> 2017-03-29 | D187: ='Stock Price Data'!B181 -> 29.68 | I187: 29.68 | J187: 29.68 | K187: 29.68 | O187: 29.68 | P187: 29.68
A188: 2017-03-30 | C188: ='Stock Price Data'!A182 -> 2017-03-30 | D188: ='Stock Price Data'!B182 -> 29.87 | I188: 29.87 | J188: 29.87 | K188: 29.87 | O188: 29.87 | P188: 29.87
A189: 2017-03-31 | C189: ='Stock Price Data'!A183 -> 2017-03-31 | D189: ='Stock Price Data'!B183 -> 29.8 | I189: 29.8 | J189: 29.8 | K189: 29.8 | O189: 29.8 | P189: 29.8
A190: 2017-04-03 | C190: ='Stock Price Data'!A184 -> 2017-04-03 | D190: ='Stock Price Data'!B184 -> 29.88 | I190: 29.88 | J190: 29.88 | K190: 29.88 | O190: 29.88 | P190: 29.88
A191: 2017-04-04 | C191: ='Stock Price Data'!A185 -> 2017-04-04 | D191: ='Stock Price Data'!B185 -> 30.02 | I191: 30.02 | J191: 30.02 | K191: 30.02 | O191: 30.02 | P191: 30.02
A192: 2017-04-05 | C192: ='Stock Price Data'!A186 -> 2017-04-05 | D192: ='Stock Price Data'!B186 -> 29.97 | I192: 29.97 | J192: 29.97 | K192: 29.97 | O192: 29.97 | P192: 29.97
A193: 2017-04-06 | C193: ='Stock Price Data'!A187 -> 2017-04-06 | D193: ='Stock Price Data'!B187 -> 29.93 | I193: 29.93 | J193: 29.93 | K193: 29.93 | O193: 29.93 | P193: 29.93
A194: 2017-04-07 | C194: ='Stock Price Data'!A188 -> 2017-04-07 | D194: ='Stock Price Data'!B188 -> 29.99 | I194: 29.99 | J194: 29.99 | K194: 29.99 | O194: 29.99 | P194: 29.99
A195: 2017-04-10 | C195: ='Stock Price Data'!A189 -> 2017-04-10 | D195: ='Stock Price Data'!B189 -> 30.01 | I195: 30.01 | J195: 30.01 | K195: 30.01 | O195: 30.01 | P195: 30.01
A196: 2017-04-11 | C196: ='Stock Price Data'!A190 -> 2017-04-11 | D196: ='Stock Price Data'!B190 -> 30.04 | I196: 30.04 | J196: 30.04 | K196: 30.04 | O196: 30.04 | P196: 30.04
A197: 2017-04-12 | C197: ='Stock Price Data'!A191 -> 2017-04-12 | D197: ='Stock Price Data'!B191 -> 29.77 | I197: 29.77 | J197: 29.77 | K197: 29.77 | O197: 29.77 | P197: 29.77
A198: 2017-04-13 | C198: ='Stock Price Data'!A192 -> 2017-04-13 | D198: ='Stock Price Data'!B192 -> 29.56 | I198: 29.56 | J198: 29.56 | K198: 29.56 | O198: 29.56 | P198: 29.56
A199: 2017-04-17 | C199: ='Stock Price Data'!A193 -> 2017-04-17 | D199: ='Stock Price Data'!B193 -> 29.64 | I199: 29.64 | J199: 29.64 | K199: 29.64 | O199: 29.64 | P199: 29.64
A200: 2017-04-18 | C200: ='Stock Price Data'!A194 -> 2017-04-18 | D200: ='Stock Price Data'!B194 -> 29.84 | I200: 29.84 | J200: 29.84 | K200: 29.84 | O200: 29.84 | P200: 29.84
... 1153 more rows

Sheet Disclaimer
